[Event "Titled Tuesday Blitz March 15 Late 2022"]
[White "Mikhalsky, Vladimir"]
[Black "Tarigan, Gilbert Elroy"]
[WhiteFideId "14144352"]
[BlackFideId "7108133"]
[WhiteElo "2301"]
[BlackElo "1908"]
[Result "1-0"]
[Round "06"]
[TimeControl "180+1"]
[Date "2022.03.16"]
[WhiteClock "0:00:35"]
[BlackClock "0:00:01"]

1. e4 {[%clk 0:03:00]}  c6 {[%clk 0:01:34]} 2. d3 {[%clk 0:02:49]}  d5 {[%clk 0:01:33]} 3. Nd2 {[%clk 0:02:49]}  e5 {[%clk 0:01:33]} 4. Ngf3 {[%clk 0:02:48]}  Bd6 {[%clk 0:01:33]} 5. g3 {[%clk 0:02:48]}  Ne7 {[%clk 0:01:34]} 6. Bg2 {[%clk 0:02:49]}  O-O {[%clk 0:01:34]} 7. O-O {[%clk 0:02:49]}  f5 {[%clk 0:01:34]} 8. c3 {[%clk 0:02:38]}  Nd7 {[%clk 0:01:28]} 9. b4 {[%clk 0:02:24]}  a5 {[%clk 0:01:28]} 10. bxa5 {[%clk 0:02:20]}  Qxa5 {[%clk 0:01:26]} 11. Bb2 {[%clk 0:02:18]}  Nf6 {[%clk 0:01:24]} 12. Nb3 {[%clk 0:02:14]}  Qc7 {[%clk 0:01:23]} 13. exd5 {[%clk 0:02:12]}  cxd5 {[%clk 0:01:22]} 14. c4 {[%clk 0:02:08]}  d4 {[%clk 0:01:19]} 15. Re1 {[%clk 0:02:08]}  Nc6 {[%clk 0:01:15]} 16. c5 {[%clk 0:01:57]}  Be7 {[%clk 0:01:15]} 17. Nfd2 {[%clk 0:01:52]}  f4 {[%clk 0:01:01]} 18. Nc4 {[%clk 0:01:49]}  Ng4 {[%clk 0:00:48]} 19. Bf3 {[%clk 0:01:36]}  Nxf2 {[%clk 0:00:29]} 20. Kxf2 {[%clk 0:01:32]}  fxg3+ {[%clk 0:00:29]} 21. hxg3 {[%clk 0:01:29]}  Bg4 {[%clk 0:00:28]} 22. Nbd2 {[%clk 0:01:27]}  e4 {[%clk 0:00:13]} 23. Rxe4 {[%clk 0:01:26]}  Bxf3 {[%clk 0:00:08]} 24. Nxf3 {[%clk 0:01:25]}  Bxc5 {[%clk 0:00:07]} 25. Kg2 {[%clk 0:01:21]}  b5 {[%clk 0:00:07]} 26. Nce5 {[%clk 0:01:16]}  Nxe5 {[%clk 0:00:08]} 27. Nxe5 {[%clk 0:01:16]}  Rae8 {[%clk 0:00:08]} 28. Qe2 {[%clk 0:01:15]}  Bd6 {[%clk 0:00:06]} 29. Bxd4 {[%clk 0:01:15]}  Qb7 {[%clk 0:00:05]} 30. Kg1 {[%clk 0:01:11]}  Rd8 {[%clk 0:00:03]} 31. Rf1 {[%clk 0:01:06]}  Rfe8 {[%clk 0:00:02]} 32. Qg4 {[%clk 0:01:01]}  Qc8 {[%clk 0:00:01]} 33. Qxc8 {[%clk 0:00:59]}  Rxc8 {[%clk 0:00:02]} 34. Rf2 {[%clk 0:00:53]}  Rc1+ {[%clk 0:00:02]} 35. Kg2 {[%clk 0:00:52]}  Rd1 {[%clk 0:00:03]} 36. Nc6 {[%clk 0:00:48]}  Rc8 {[%clk 0:00:03]} 37. Na7 {[%clk 0:00:45]}  Rd8 {[%clk 0:00:02]} 38. Nxb5 {[%clk 0:00:44]}  Bf8 {[%clk 0:00:02]} 39. Re3 {[%clk 0:00:36]}  Rd2 {[%clk 0:00:01]} 40. Rxd2 {[%clk 0:00:35]} 1-0


[Site "https://www.chess.com"]

[Event "Titled Tuesday Blitz March 15 Late 2022"]
[White "Olsen, Filip Boe"]
[Black "Donchenko, Alexander"]
[WhiteFideId "1440640"]
[BlackFideId "24603295"]
[WhiteElo "2188"]
[BlackElo "2539"]
[Result "1/2-1/2"]
[Round "06"]
[TimeControl "180+1"]
[Date "2022.03.16"]
[WhiteClock "0:00:34"]
[BlackClock "0:01:28"]

1. d4 {[%clk 0:03:00]}  d5 {[%clk 0:02:59]} 2. Nf3 {[%clk 0:03:00]}  Nf6 {[%clk 0:02:59]} 3. Bf4 {[%clk 0:03:00]}  c5 {[%clk 0:02:59]} 4. e3 {[%clk 0:03:00]}  Nc6 {[%clk 0:03:00]} 5. c3 {[%clk 0:03:00]}  Qb6 {[%clk 0:03:00]} 6. Qb3 {[%clk 0:03:00]}  c4 {[%clk 0:03:01]} 7. Qc2 {[%clk 0:03:01]}  Bf5 {[%clk 0:03:01]} 8. Qc1 {[%clk 0:03:01]}  h6 {[%clk 0:03:01]} 9. Nbd2 {[%clk 0:03:01]}  e6 {[%clk 0:03:01]} 10. h3 {[%clk 0:03:00]}  Be7 {[%clk 0:03:02]} 11. Be2 {[%clk 0:03:00]}  O-O {[%clk 0:03:02]} 12. O-O {[%clk 0:03:00]}  Rfc8 {[%clk 0:03:02]} 13. Bd1 {[%clk 0:03:00]}  Qd8 {[%clk 0:03:00]} 14. Bc2 {[%clk 0:03:00]}  Bxc2 {[%clk 0:03:01]} 15. Qxc2 {[%clk 0:03:01]}  b5 {[%clk 0:03:01]} 16. e4 {[%clk 0:03:00]}  b4 {[%clk 0:03:01]} 17. Rfe1 {[%clk 0:02:59]}  Bf8 {[%clk 0:02:58]} 18. exd5 {[%clk 0:02:55]}  exd5 {[%clk 0:02:57]} 19. Ne5 {[%clk 0:02:55]}  Nd7 {[%clk 0:02:50]} 20. Ndf3 {[%clk 0:02:46]}  Ncxe5 {[%clk 0:02:47]} 21. Nxe5 {[%clk 0:02:45]}  Nxe5 {[%clk 0:02:46]} 22. Rxe5 {[%clk 0:02:44]}  bxc3 {[%clk 0:02:41]} 23. bxc3 {[%clk 0:02:44]}  Rab8 {[%clk 0:02:35]} 24. Rb1 {[%clk 0:02:13]}  Rxb1+ {[%clk 0:02:23]} 25. Qxb1 {[%clk 0:02:13]}  Rb8 {[%clk 0:02:23]} 26. Qf5 {[%clk 0:02:13]}  Rb5 {[%clk 0:02:23]} 27. Bg3 {[%clk 0:02:05]}  g6 {[%clk 0:02:16]} 28. Qf3 {[%clk 0:02:05]}  Ra5 {[%clk 0:02:13]} 29. Qe2 {[%clk 0:01:59]}  Ra6 {[%clk 0:02:00]} 30. Qf3 {[%clk 0:01:49]}  Ra5 {[%clk 0:01:59]} 31. Qe2 {[%clk 0:01:48]}  Qd7 {[%clk 0:01:58]} 32. Re8 {[%clk 0:01:46]}  Ra6 {[%clk 0:01:58]} 33. Rb8 {[%clk 0:01:32]}  Re6 {[%clk 0:01:54]} 34. Qd2 {[%clk 0:01:31]}  Re8 {[%clk 0:01:54]} 35. Qb2 {[%clk 0:01:24]}  Rxb8 {[%clk 0:01:51]} 36. Qxb8 {[%clk 0:01:25]}  Qe7 {[%clk 0:01:41]} 37. Be5 {[%clk 0:01:24]}  Kh7 {[%clk 0:01:39]} 38. Qa8 {[%clk 0:01:18]}  f6 {[%clk 0:01:38]} 39. Bg3 {[%clk 0:01:11]}  Bg7 {[%clk 0:01:38]} 40. Kh2 {[%clk 0:00:52]}  Qe1 {[%clk 0:01:35]} 41. Qxa7 {[%clk 0:00:52]}  Qxc3 {[%clk 0:01:33]} 42. Bd6 {[%clk 0:00:52]}  Qd2 {[%clk 0:01:27]} 43. Bf8 {[%clk 0:00:34]}  Qf4+ {[%clk 0:01:27]} 44. Kh1 {[%clk 0:00:32]}  Qc1+ {[%clk 0:01:27]} 45. Kh2 {[%clk 0:00:33]}  Qf4+ {[%clk 0:01:27]} 46. Kg1 {[%clk 0:00:33]}  Qc1+ {[%clk 0:01:27]} 47. Kh2 {[%clk 0:00:34]}  Qf4+ {[%clk 0:01:28]} 1/2-1/2


[Site "https://www.chess.com"]

[Event "Titled Tuesday Blitz March 15 Late 2022"]
[White "Ozates, Tuna"]
[Black "Ezat, Mohamed"]
[WhiteFideId "6354521"]
[BlackFideId "10600906"]
[WhiteElo "1887"]
[BlackElo "2386"]
[Result "0-1"]
[Round "06"]
[TimeControl "180+1"]
[Date "2022.03.16"]
[WhiteClock "0:00:01"]
[BlackClock "0:00:32"]

1. e4 {[%clk 0:02:42]}  c6 {[%clk 0:02:58]} 2. d4 {[%clk 0:02:42]}  d5 {[%clk 0:02:57]} 3. exd5 {[%clk 0:02:42]}  cxd5 {[%clk 0:02:57]} 4. c4 {[%clk 0:02:43]}  Nf6 {[%clk 0:02:55]} 5. Nc3 {[%clk 0:02:44]}  g6 {[%clk 0:02:55]} 6. cxd5 {[%clk 0:02:42]}  Bg7 {[%clk 0:02:53]} 7. Qb3 {[%clk 0:02:42]}  O-O {[%clk 0:02:53]} 8. Nge2 {[%clk 0:02:39]}  Na6 {[%clk 0:02:53]} 9. g3 {[%clk 0:02:37]}  Qb6 {[%clk 0:02:52]} 10. Qxb6 {[%clk 0:02:25]}  axb6 {[%clk 0:02:50]} 11. Bg2 {[%clk 0:02:25]}  Nb4 {[%clk 0:02:50]} 12. O-O {[%clk 0:02:25]}  Rd8 {[%clk 0:02:48]} 13. Bf4 {[%clk 0:02:20]}  Nfxd5 {[%clk 0:02:44]} 14. Nxd5 {[%clk 0:02:09]}  Nxd5 {[%clk 0:02:42]} 15. Be5 {[%clk 0:02:01]}  Be6 {[%clk 0:02:30]} 16. Bxg7 {[%clk 0:01:59]}  Kxg7 {[%clk 0:02:30]} 17. a3 {[%clk 0:01:59]}  Rac8 {[%clk 0:02:27]} 18. Rac1 {[%clk 0:01:59]}  Rc6 {[%clk 0:02:15]} 19. Nc3 {[%clk 0:01:39]}  Rdc8 {[%clk 0:02:09]} 20. Bxd5 {[%clk 0:01:33]}  Bxd5 {[%clk 0:02:08]} 21. Rce1 {[%clk 0:01:30]}  Bc4 {[%clk 0:02:07]} 22. Rxe7 {[%clk 0:01:29]}  Bxf1 {[%clk 0:02:05]} 23. Kxf1 {[%clk 0:01:29]}  R6c7 {[%clk 0:02:05]} 24. Re5 {[%clk 0:01:27]}  Rd8 {[%clk 0:02:04]} 25. d5 {[%clk 0:01:27]}  Rc4 {[%clk 0:01:53]} 26. Re7 {[%clk 0:01:25]}  Rb8 {[%clk 0:01:49]} 27. Ke2 {[%clk 0:01:19]}  Kf8 {[%clk 0:01:45]} 28. Rd7 {[%clk 0:01:16]}  Rc5 {[%clk 0:01:39]} 29. Kd3 {[%clk 0:01:13]}  b5 {[%clk 0:01:38]} 30. Kd4 {[%clk 0:01:10]}  Rc4+ {[%clk 0:01:37]} 31. Ke5 {[%clk 0:01:07]}  b4 {[%clk 0:01:21]} 32. axb4 {[%clk 0:00:58]}  Rxb4 {[%clk 0:01:19]} 33. Kf6 {[%clk 0:00:58]}  Rb6+ {[%clk 0:01:15]} 34. d6 {[%clk 0:00:58]}  Kg8 {[%clk 0:01:13]} 35. Nd5 {[%clk 0:00:39]}  Rxb2 {[%clk 0:01:12]} 36. f4 {[%clk 0:00:35]}  Rb5 {[%clk 0:01:05]} 37. Ne3 {[%clk 0:00:27]}  Re8 {[%clk 0:01:00]} 38. Re7 {[%clk 0:00:23]}  Rd8 {[%clk 0:00:55]} 39. d7 {[%clk 0:00:10]}  Rb6+ {[%clk 0:00:51]} 40. Ke5 {[%clk 0:00:10]}  Kf8 {[%clk 0:00:49]} 41. Nd5 {[%clk 0:00:11]}  Rb5 {[%clk 0:00:39]} 42. Kf6 {[%clk 0:00:01]}  Rxd5 {[%clk 0:00:32]} 0-1


[Site "https://www.chess.com"]

[Event "Titled Tuesday Blitz March 15 Late 2022"]
[White "P., Komal Kishore"]
[Black "Sinitsina, Anastassia"]
[WhiteFideId "5016703"]
[BlackFideId "4504640"]
[WhiteElo "2123"]
[BlackElo "2144"]
[Result "0-1"]
[Round "06"]
[TimeControl "180+1"]
[Date "2022.03.16"]
[WhiteClock "0:01:14"]
[BlackClock "0:01:58"]

1. e4 {[%clk 0:03:00]}  e5 {[%clk 0:02:59]} 2. Nf3 {[%clk 0:02:58]}  Nc6 {[%clk 0:02:59]} 3. Bb5 {[%clk 0:02:58]}  a6 {[%clk 0:02:59]} 4. Ba4 {[%clk 0:02:58]}  Nf6 {[%clk 0:02:59]} 5. O-O {[%clk 0:02:58]}  Nxe4 {[%clk 0:03:00]} 6. Re1 {[%clk 0:02:58]}  Nc5 {[%clk 0:02:59]} 7. Nxe5 {[%clk 0:02:56]}  Be7 {[%clk 0:02:50]} 8. Nxc6 {[%clk 0:02:54]}  dxc6 {[%clk 0:02:49]} 9. Bb3 {[%clk 0:02:50]}  Nxb3 {[%clk 0:02:49]} 10. axb3 {[%clk 0:02:49]}  O-O {[%clk 0:02:50]} 11. d4 {[%clk 0:02:47]}  Bf6 {[%clk 0:02:49]} 12. c3 {[%clk 0:02:46]}  Bf5 {[%clk 0:02:48]} 13. b4 {[%clk 0:02:46]}  Re8 {[%clk 0:02:45]} 14. Rxe8+ {[%clk 0:02:44]}  Qxe8 {[%clk 0:02:44]} 15. Nd2 {[%clk 0:02:43]}  Rd8 {[%clk 0:02:41]} 16. Nb3 {[%clk 0:02:41]}  Bc2 {[%clk 0:02:37]} 17. Qf1 {[%clk 0:02:14]}  Bxb3 {[%clk 0:02:37]} 18. Be3 {[%clk 0:02:13]}  Qe4 {[%clk 0:02:35]} 19. Re1 {[%clk 0:02:10]}  Qg6 {[%clk 0:02:25]} 20. Bf4 {[%clk 0:02:02]}  Bd5 {[%clk 0:02:17]} 21. f3 {[%clk 0:01:51]}  h6 {[%clk 0:02:14]} 22. Bxc7 {[%clk 0:01:44]}  Rc8 {[%clk 0:02:14]} 23. Bg3 {[%clk 0:01:42]}  Qc2 {[%clk 0:02:13]} 24. Re2 {[%clk 0:01:35]}  Qb3 {[%clk 0:02:10]} 25. Qe1 {[%clk 0:01:27]}  Bc4 {[%clk 0:02:00]} 26. Re8+ {[%clk 0:01:22]}  Rxe8 {[%clk 0:02:00]} 27. Qxe8+ {[%clk 0:01:22]}  Kh7 {[%clk 0:02:01]} 28. Qd7 {[%clk 0:01:15]}  Qd1+ {[%clk 0:01:58]} 29. Kf2 {[%clk 0:01:14]}  Qe2+ {[%clk 0:01:58]} 0-1


[Site "https://www.chess.com"]

[Event "Titled Tuesday Blitz March 15 Late 2022"]
[White "Paravyan, David"]
[Black "Zhigalko, Sergei"]
[WhiteFideId "4194985"]
[BlackFideId "13502956"]
[WhiteElo "2569"]
[BlackElo "2662"]
[Result "1-0"]
[Round "06"]
[TimeControl "180+1"]
[Date "2022.03.15"]
[WhiteClock "0:00:19"]
[BlackClock "0:00:01"]

1. e4 {[%clk 0:03:00]}  c5 {[%clk 0:02:59]} 2. Nf3 {[%clk 0:03:01]}  Nc6 {[%clk 0:02:59]} 3. d4 {[%clk 0:03:02]}  cxd4 {[%clk 0:03:00]} 4. Nxd4 {[%clk 0:03:03]}  Nf6 {[%clk 0:03:00]} 5. Nc3 {[%clk 0:03:04]}  e5 {[%clk 0:03:01]} 6. Ndb5 {[%clk 0:03:04]}  d6 {[%clk 0:03:01]} 7. Nd5 {[%clk 0:03:05]}  Nxd5 {[%clk 0:03:01]} 8. exd5 {[%clk 0:03:05]}  Nb8 {[%clk 0:03:01]} 9. a4 {[%clk 0:03:06]}  Be7 {[%clk 0:03:02]} 10. Be2 {[%clk 0:03:06]}  O-O {[%clk 0:03:02]} 11. O-O {[%clk 0:03:07]}  Nd7 {[%clk 0:03:03]} 12. Bd2 {[%clk 0:03:07]}  f5 {[%clk 0:02:59]} 13. a5 {[%clk 0:03:06]}  Nf6 {[%clk 0:02:54]} 14. Bb4 {[%clk 0:03:07]}  Kh8 {[%clk 0:02:43]} 15. Kh1 {[%clk 0:02:44]}  a6 {[%clk 0:01:57]} 16. Na3 {[%clk 0:02:44]}  f4 {[%clk 0:01:57]} 17. Nc4 {[%clk 0:02:43]}  Bf5 {[%clk 0:01:57]} 18. Nb6 {[%clk 0:02:35]}  Rb8 {[%clk 0:01:55]} 19. Qc1 {[%clk 0:02:25]}  Qe8 {[%clk 0:01:45]} 20. c4 {[%clk 0:02:23]}  Qg6 {[%clk 0:01:33]} 21. Ra3 {[%clk 0:02:22]}  Rbd8 {[%clk 0:01:15]} 22. f3 {[%clk 0:02:04]}  Nh5 {[%clk 0:01:13]} 23. Be1 {[%clk 0:01:14]}  Bf6 {[%clk 0:00:49]} 24. b4 {[%clk 0:01:12]}  Ng3+ {[%clk 0:00:23]} 25. hxg3 {[%clk 0:01:08]}  fxg3 {[%clk 0:00:24]} 26. Kg1 {[%clk 0:01:05]}  Bg5 {[%clk 0:00:23]} 27. f4 {[%clk 0:00:45]}  exf4 {[%clk 0:00:17]} 28. Rxf4 {[%clk 0:00:46]}  Be4 {[%clk 0:00:02]} 29. Rxf8+ {[%clk 0:00:44]}  Rxf8 {[%clk 0:00:03]} 30. Qc3 {[%clk 0:00:39]}  Qh6 {[%clk 0:00:01]} 31. Qxg3 {[%clk 0:00:40]}  Bf4 {[%clk 0:00:01]} 32. Qh3 {[%clk 0:00:35]}  Qg5 {[%clk 0:00:02]} 33. Bf2 {[%clk 0:00:30]}  Be5 {[%clk 0:00:02]} 34. Re3 {[%clk 0:00:20]}  Bf5 {[%clk 0:00:01]} 35. Qh5 {[%clk 0:00:19]}  Qf6 {[%clk 0:00:01]} 36. Nd7 {[%clk 0:00:19]} 1-0


[Site "https://www.chess.com"]

[Event "Titled Tuesday Blitz March 15 Late 2022"]
[White "Peatman, Carter"]
[Black "Kobalia, Mikhail"]
[WhiteFideId "2096480"]
[BlackFideId "4119150"]
[WhiteElo "2442"]
[BlackElo "2667"]
[Result "0-1"]
[Round "06"]
[TimeControl "180+1"]
[Date "2022.03.16"]
[WhiteClock "0:00:08"]
[BlackClock "0:00:57"]

1. d4 {[%clk 0:02:58]}  Nf6 {[%clk 0:02:59]} 2. Bf4 {[%clk 0:02:58]}  c5 {[%clk 0:02:58]} 3. e3 {[%clk 0:02:58]}  d5 {[%clk 0:02:57]} 4. Nd2 {[%clk 0:02:58]}  Nc6 {[%clk 0:02:56]} 5. c3 {[%clk 0:02:58]}  cxd4 {[%clk 0:02:51]} 6. cxd4 {[%clk 0:02:56]}  e6 {[%clk 0:02:47]} 7. Ngf3 {[%clk 0:02:56]}  Bd6 {[%clk 0:02:47]} 8. Bg3 {[%clk 0:02:54]}  O-O {[%clk 0:02:46]} 9. Bd3 {[%clk 0:02:54]}  Nb4 {[%clk 0:02:42]} 10. Bb1 {[%clk 0:02:54]}  b6 {[%clk 0:02:20]} 11. a3 {[%clk 0:02:50]}  Nc6 {[%clk 0:02:20]} 12. O-O {[%clk 0:02:49]}  Ba6 {[%clk 0:02:20]} 13. Re1 {[%clk 0:02:50]}  Rc8 {[%clk 0:02:18]} 14. Bh4 {[%clk 0:02:50]}  Be7 {[%clk 0:02:18]} 15. b4 {[%clk 0:02:48]}  Ne8 {[%clk 0:02:10]} 16. Bxe7 {[%clk 0:02:46]}  Nxe7 {[%clk 0:02:05]} 17. Ne5 {[%clk 0:02:43]}  f6 {[%clk 0:02:02]} 18. Qh5 {[%clk 0:02:24]}  Nf5 {[%clk 0:02:01]} 19. Nef3 {[%clk 0:02:02]}  Ned6 {[%clk 0:02:01]} 20. Nh4 {[%clk 0:01:32]}  Qd7 {[%clk 0:01:56]} 21. Nxf5 {[%clk 0:01:29]}  Nxf5 {[%clk 0:01:56]} 22. Nf3 {[%clk 0:01:29]}  Rc3 {[%clk 0:01:53]} 23. Nh4 {[%clk 0:01:26]}  g6 {[%clk 0:01:52]} 24. Qg4 {[%clk 0:01:23]}  Rfc8 {[%clk 0:01:50]} 25. Nxf5 {[%clk 0:01:22]}  exf5 {[%clk 0:01:50]} 26. Qf3 {[%clk 0:01:17]}  Bc4 {[%clk 0:01:49]} 27. Ba2 {[%clk 0:01:08]}  Kg7 {[%clk 0:01:45]} 28. Bxc4 {[%clk 0:01:06]}  R8xc4 {[%clk 0:01:44]} 29. Qf4 {[%clk 0:01:02]}  Qc7 {[%clk 0:01:43]} 30. Qf3 {[%clk 0:00:59]}  Qd6 {[%clk 0:01:42]} 31. g4 {[%clk 0:00:54]}  fxg4 {[%clk 0:01:41]} 32. Qxg4 {[%clk 0:00:55]}  Rc2 {[%clk 0:01:39]} 33. Rad1 {[%clk 0:00:46]}  Ra2 {[%clk 0:01:37]} 34. e4 {[%clk 0:00:40]}  dxe4 {[%clk 0:01:34]} 35. Rxe4 {[%clk 0:00:32]}  f5 {[%clk 0:01:29]} 36. Qf4 {[%clk 0:00:32]}  Qxf4 {[%clk 0:01:29]} 37. Rxf4 {[%clk 0:00:33]}  Rxa3 {[%clk 0:01:29]} 38. d5 {[%clk 0:00:22]}  Rxf4 {[%clk 0:01:26]} 39. d6 {[%clk 0:00:22]}  Rff3 {[%clk 0:01:26]} 40. d7 {[%clk 0:00:22]}  Rfd3 {[%clk 0:01:27]} 41. d8=Q {[%clk 0:00:22]}  Rxd8 {[%clk 0:01:27]} 42. Rxd8 {[%clk 0:00:23]}  a5 {[%clk 0:01:15]} 43. Rb8 {[%clk 0:00:20]}  axb4 {[%clk 0:01:13]} 44. Rxb6 {[%clk 0:00:20]}  Rb3 {[%clk 0:01:13]} 45. Kg2 {[%clk 0:00:21]}  Kh6 {[%clk 0:01:12]} 46. Rb5 {[%clk 0:00:20]}  Kg5 {[%clk 0:01:11]} 47. Rb7 {[%clk 0:00:20]}  h5 {[%clk 0:01:11]} 48. Rb5 {[%clk 0:00:20]}  h4 {[%clk 0:01:10]} 49. h3 {[%clk 0:00:21]}  Kf4 {[%clk 0:01:10]} 50. Rb7 {[%clk 0:00:20]}  g5 {[%clk 0:01:10]} 51. Rb8 {[%clk 0:00:21]}  Rb1 {[%clk 0:01:10]} 52. Rg8 {[%clk 0:00:19]}  b3 {[%clk 0:01:10]} 53. Rb8 {[%clk 0:00:18]}  Ke4 {[%clk 0:01:09]} 54. Rb4+ {[%clk 0:00:19]}  Kd3 {[%clk 0:01:09]} 55. Rb5 {[%clk 0:00:19]}  Kc4 {[%clk 0:01:09]} 56. Rxf5 {[%clk 0:00:19]}  Rd1 {[%clk 0:01:08]} 57. Rf8 {[%clk 0:00:09]}  b2 {[%clk 0:01:08]} 58. Rc8+ {[%clk 0:00:10]}  Kd3 {[%clk 0:01:08]} 59. Rd8+ {[%clk 0:00:10]}  Kc2 {[%clk 0:01:07]} 60. Rc8+ {[%clk 0:00:10]}  Kb3 {[%clk 0:01:07]} 61. Rb8+ {[%clk 0:00:10]}  Ka2 {[%clk 0:01:05]} 62. Ra8+ {[%clk 0:00:10]}  Kb1 {[%clk 0:01:06]} 63. Rc8 {[%clk 0:00:08]}  Rd5 {[%clk 0:01:05]} 64. Kf3 {[%clk 0:00:08]}  Ka2 {[%clk 0:01:05]} 65. Ra8+ {[%clk 0:00:08]}  Kb3 {[%clk 0:01:05]} 66. Rb8+ {[%clk 0:00:08]}  Kc3 {[%clk 0:01:05]} 67. Ke4 {[%clk 0:00:08]}  Rc5 {[%clk 0:01:01]} 68. Ke3 {[%clk 0:00:07]}  Re5+ {[%clk 0:00:59]} 69. Kf3 {[%clk 0:00:06]}  Rf5+ {[%clk 0:00:57]} 70. Ke2 {[%clk 0:00:07]}  Rf4 {[%clk 0:00:57]} 71. Rc8+ {[%clk 0:00:05]}  Rc4 {[%clk 0:00:57]} 72. Rb8 {[%clk 0:00:05]}  Rb4 {[%clk 0:00:57]} 73. Rc8+ {[%clk 0:00:06]}  Kd4 {[%clk 0:00:57]} 74. Rd8+ {[%clk 0:00:07]}  Ke5 {[%clk 0:00:57]} 75. Re8+ {[%clk 0:00:07]}  Kf6 {[%clk 0:00:57]} 76. Rf8+ {[%clk 0:00:08]}  Kg7 {[%clk 0:00:57]} 77. Rg8+ {[%clk 0:00:08]}  Kxg8 {[%clk 0:00:57]} 0-1


[Site "https://www.chess.com"]

[Event "Titled Tuesday Blitz March 15 Late 2022"]
[White "Perez Leiva, Jerzy Jesus"]
[Black "Sadilek, Peter"]
[WhiteFideId "3524337"]
[BlackFideId "1616439"]
[WhiteElo "2261"]
[BlackElo "2145"]
[Result "0-1"]
[Round "06"]
[TimeControl "180+1"]
[Date "2022.03.16"]
[WhiteClock "0:01:13"]
[BlackClock "0:01:25"]

1. d4 {[%clk 0:02:56]}  d6 {[%clk 0:02:55]} 2. e4 {[%clk 0:02:55]}  Nf6 {[%clk 0:02:55]} 3. Nc3 {[%clk 0:02:55]}  g6 {[%clk 0:02:56]} 4. Bf4 {[%clk 0:02:51]}  c6 {[%clk 0:02:56]} 5. Qd2 {[%clk 0:02:52]}  b5 {[%clk 0:02:55]} 6. a3 {[%clk 0:02:51]}  Bg7 {[%clk 0:02:49]} 7. O-O-O {[%clk 0:02:49]}  O-O {[%clk 0:02:42]} 8. Nf3 {[%clk 0:02:33]}  a5 {[%clk 0:02:41]} 9. e5 {[%clk 0:02:33]}  b4 {[%clk 0:02:39]} 10. exf6 {[%clk 0:02:29]}  bxc3 {[%clk 0:02:39]} 11. Qxc3 {[%clk 0:02:29]}  Bxf6 {[%clk 0:02:33]} 12. Bh6 {[%clk 0:02:04]}  Re8 {[%clk 0:02:32]} 13. Bc4 {[%clk 0:02:02]}  Nd7 {[%clk 0:02:11]} 14. Ng5 {[%clk 0:01:55]}  d5 {[%clk 0:02:06]} 15. Ba2 {[%clk 0:01:55]}  e6 {[%clk 0:02:06]} 16. h4 {[%clk 0:01:55]}  c5 {[%clk 0:02:06]} 17. h5 {[%clk 0:01:43]}  Bxg5+ {[%clk 0:02:03]} 18. Bxg5 {[%clk 0:01:39]}  Qxg5+ {[%clk 0:02:04]} 19. Kb1 {[%clk 0:01:40]}  cxd4 {[%clk 0:01:54]} 20. Qxd4 {[%clk 0:01:41]}  Qf6 {[%clk 0:01:51]} 21. Qd2 {[%clk 0:01:39]}  Rb8 {[%clk 0:01:51]} 22. c3 {[%clk 0:01:40]}  Nc5 {[%clk 0:01:34]} 23. hxg6 {[%clk 0:01:38]}  hxg6 {[%clk 0:01:34]} 24. Rh3 {[%clk 0:01:15]}  Ne4 {[%clk 0:01:33]} 25. Qh6 {[%clk 0:01:13]}  Nxc3+ {[%clk 0:01:25]} 0-1


[Site "https://www.chess.com"]

[Event "Titled Tuesday Blitz March 15 Late 2022"]
[White "Pichot, Alan"]
[Black "Indjic, Aleksandar"]
[WhiteFideId "110973"]
[BlackFideId "911925"]
[WhiteElo "2579"]
[BlackElo "2616"]
[Result "1-0"]
[Round "06"]
[TimeControl "180+1"]
[Date "2022.03.15"]
[WhiteClock "0:00:28"]
[BlackClock "0:00:26"]

1. e4 {[%clk 0:03:00]}  e5 {[%clk 0:03:00]} 2. Nf3 {[%clk 0:03:00]}  Nc6 {[%clk 0:02:57]} 3. Bb5 {[%clk 0:02:59]}  a6 {[%clk 0:02:54]} 4. Ba4 {[%clk 0:02:59]}  Nf6 {[%clk 0:02:52]} 5. O-O {[%clk 0:02:59]}  Be7 {[%clk 0:02:51]} 6. Re1 {[%clk 0:02:58]}  b5 {[%clk 0:02:51]} 7. Bb3 {[%clk 0:02:58]}  d6 {[%clk 0:02:51]} 8. c3 {[%clk 0:02:58]}  O-O {[%clk 0:02:50]} 9. h3 {[%clk 0:02:59]}  Nb8 {[%clk 0:02:48]} 10. d4 {[%clk 0:02:58]}  Nbd7 {[%clk 0:02:49]} 11. Nbd2 {[%clk 0:02:58]}  Bb7 {[%clk 0:02:48]} 12. Bc2 {[%clk 0:02:59]}  Re8 {[%clk 0:02:48]} 13. Nf1 {[%clk 0:02:59]}  Bf8 {[%clk 0:02:49]} 14. Ng3 {[%clk 0:03:00]}  g6 {[%clk 0:02:49]} 15. a4 {[%clk 0:03:01]}  Nb6 {[%clk 0:02:35]} 16. a5 {[%clk 0:02:48]}  Nbd7 {[%clk 0:02:35]} 17. d5 {[%clk 0:02:48]}  c6 {[%clk 0:02:34]} 18. dxc6 {[%clk 0:02:47]}  Bxc6 {[%clk 0:02:34]} 19. b4 {[%clk 0:02:48]}  d5 {[%clk 0:02:26]} 20. Bb3 {[%clk 0:02:46]}  dxe4 {[%clk 0:01:48]} 21. Ng5 {[%clk 0:02:45]}  Re7 {[%clk 0:01:49]} 22. N5xe4 {[%clk 0:02:32]}  Nxe4 {[%clk 0:01:43]} 23. Nxe4 {[%clk 0:02:33]}  Bxe4 {[%clk 0:01:42]} 24. Rxe4 {[%clk 0:02:33]}  Nf6 {[%clk 0:01:42]} 25. Qxd8 {[%clk 0:02:13]}  Rxd8 {[%clk 0:01:43]} 26. Re2 {[%clk 0:02:12]}  h6 {[%clk 0:01:35]} 27. Be3 {[%clk 0:01:51]}  Rc8 {[%clk 0:01:33]} 28. Rc1 {[%clk 0:01:47]}  Rec7 {[%clk 0:01:33]} 29. Rec2 {[%clk 0:01:34]}  Ne4 {[%clk 0:01:33]} 30. c4 {[%clk 0:01:22]}  bxc4 {[%clk 0:01:32]} 31. Bxc4 {[%clk 0:01:09]}  Kg7 {[%clk 0:01:32]} 32. Bxa6 {[%clk 0:01:08]}  Rxc2 {[%clk 0:01:29]} 33. Bxc8 {[%clk 0:01:08]}  Ra2 {[%clk 0:00:52]} 34. Bb7 {[%clk 0:00:52]}  Bxb4 {[%clk 0:00:46]} 35. Bxe4 {[%clk 0:00:52]}  Rxa5 {[%clk 0:00:45]} 36. g4 {[%clk 0:00:52]}  Bd6 {[%clk 0:00:34]} 37. Rc6 {[%clk 0:00:51]}  Be7 {[%clk 0:00:34]} 38. Rc7 {[%clk 0:00:45]}  Bg5 {[%clk 0:00:34]} 39. Bxg5 {[%clk 0:00:45]}  hxg5 {[%clk 0:00:35]} 40. Rd7 {[%clk 0:00:46]}  Ra6 {[%clk 0:00:33]} 41. Bd5 {[%clk 0:00:44]}  Rf6 {[%clk 0:00:29]} 42. f3 {[%clk 0:00:44]}  Kh6 {[%clk 0:00:28]} 43. Kf2 {[%clk 0:00:44]}  Rb6 {[%clk 0:00:27]} 44. Bxf7 {[%clk 0:00:39]}  e4 {[%clk 0:00:27]} 45. Bg8 {[%clk 0:00:31]}  e3+ {[%clk 0:00:26]} 46. Kg3 {[%clk 0:00:28]}  Rb7 {[%clk 0:00:25]} 47. Rxb7 {[%clk 0:00:28]}  e2 {[%clk 0:00:26]} 48. Rh7# {[%clk 0:00:28]} 1-0


[Site "https://www.chess.com"]